bitfinex/quotes_SOLUSD_20250604
["timestamp","ask_amount","ask_price","bid_price","bid_amount"]
[1749038307174,33.08832049,155.91,155.86,14.43867163]
[1749038307678,18.64964886,155.89,155.85,14.43867163]
[1749038307973,18.64964886,155.89,155.85,160.43867163]
[1749038308863,14.43867163,155.89,155.85,160.43867163]
[1749038309265,14.43867163,155.89,155.85,14.43867163]
[1749038309672,14.43867163,155.87,155.83,27.9352015]
[1749038309969,14.43867163,155.87,155.83,42.37387313]
[1749038310178,14.43867163,155.88,155.83,42.37387313]
[1749038310386,18.64964886,155.87,155.83,14.43867163]
[1749038311581,14.43867163,155.87,155.83,14.43867163]
[1749038311785,18.64964886,155.87,155.83,14.43867163]
[1749038311990,14.43867163,155.89,155.84,14.43867163]
[1749038312166,18.64964886,155.88,155.84,14.43867163]
[1749038312490,14.43867163,155.89,155.84,14.43867163]
[1749038312892,14.43867163,155.89,155.85,14.43867163]
[1749038313386,14.43867163,155.89,155.84,14.43867163]
[1749038314369,14.43867163,155.88,155.84,14.43867163]
[1749038316795,18.64964886,155.9,155.84,14.43867163]
[1749038316990,14.43867163,155.88,155.82,26.0]
[1749038317195,14.43867163,155.88,155.84,14.43867163]
[1749038318391,14.43867163,155.88,155.83,14.43867163]
[1749038319790,14.43867163,155.87,155.83,14.43867163]
[1749038320497,14.43867163,155.89,155.84,14.43867163]
[1749038320797,18.64964886,155.88,155.84,14.43867163]
[1749038321091,18.64964886,155.88,155.85,14.43867163]
[1749038323080,18.64964886,155.88,155.84,14.43867163]
[1749038325680,18.64964886,155.88,155.82,172.0]
[1749038325868,14.43867163,155.88,155.83,14.43867163]
[1749038327068,18.64964886,155.9,155.83,14.43867163]
[1749038327269,14.43867163,155.88,155.84,14.43867163]
[1749038328178,14.43867163,155.88,155.82,172.0]
[1749038328378,14.43867163,155.88,155.84,14.43867163]
[1749038329092,18.64964886,155.86,155.83,14.43867163]
[1749038329278,18.64964886,155.86,155.82,172.0]
[1749038329480,18.64964886,155.86,155.82,186.43867163]
[1749038329688,33.08832049,155.86,155.82,160.43867163]
[1749038330583,18.64964886,155.86,155.84,14.43867163]
[1749038331797,18.64964886,155.9,155.85,14.43867163]
[1749038331972,18.64964886,155.92,155.87,14.43867163]
[1749038332169,33.08832049,155.92,155.88,14.43867163]
[1749038332695,33.08832049,155.92,155.87,14.43867163]
[1749038333081,33.08832049,155.92,155.88,14.43867163]
[1749038333406,14.43867163,155.91,155.87,14.43867163]
[1749038333877,18.64964886,155.9,155.87,14.43867163]
[1749038335408,33.08832049,155.92,155.88,14.43867163]
[1749038335784,18.64964886,155.93,155.89,14.43867163]
[1749038336293,33.08832049,155.93,155.89,14.43867163]
[1749038338212,18.64964886,155.93,155.9,14.43867163]
[1749038339207,33.08832049,155.93,155.88,14.43867163]
[1749038340290,14.43867163,155.91,155.87,40.43867163]
[1749038340691,14.43867163,155.91,155.87,26.0]
[1749038340998,14.43867163,155.91,155.87,40.43867163]
[1749038341203,18.64964886,155.91,155.87,14.43867163]
[1749038341401,14.43867163,155.91,155.87,14.43867163]
[1749038341586,14.43867163,155.91,155.84,173.5269]
[1749038341789,18.64964886,155.89,155.86,14.43867163]
[1749038342110,14.43867163,155.91,155.87,14.43867163]
[1749038343104,18.64964886,155.89,155.86,14.43867163]
[1749038343991,18.64964886,155.89,155.84,1.5269]
[1749038344196,14.43867163,155.89,155.83,26.0]
[1749038344392,14.43867163,155.89,155.84,14.43867163]
[1749038344592,14.43867163,155.89,155.85,14.43867163]
[1749038345010,18.64964886,155.92,155.86,14.43867163]
[1749038345325,14.43867163,155.91,155.86,14.43867163]
[1749038345620,18.64964886,155.89,155.86,14.43867163]
[1749038345837,18.64964886,155.89,155.85,14.43867163]
[1749038347497,14.43867163,155.89,155.85,14.43867163]
[1749038348012,14.43867163,155.89,155.82,146.42648471]
[1749038348013,14.43867163,155.88,155.84,14.43867163]
[1749038348192,14.43867163,155.89,155.85,14.43867163]
[1749038348395,18.64964886,155.91,155.85,14.43867163]
[1749038348602,14.43867163,155.89,155.85,14.43867163]
[1749038348800,14.43867163,155.88,155.82,146.42648471]
[1749038349000,18.64964886,155.87,155.84,14.43867163]
[1749038349208,18.64964886,155.87,155.83,14.43867163]
[1749038349519,14.43867163,155.87,155.82,14.43867163]
[1749038350118,14.43867163,155.87,155.83,14.43867163]
[1749038350903,14.43867163,155.88,155.84,14.43867163]
[1749038352002,14.43867163,155.88,155.83,14.43867163]
[1749038352724,14.43867163,155.87,155.81,146.0]
[1749038352957,14.43867163,155.87,155.82,14.43867163]
[1749038353303,0.5,155.86,155.82,14.43867163]
[1749038354204,0.5,155.86,155.84,14.43867163]
[1749038354411,18.64964886,155.89,155.81,146.0]
[1749038354412,14.43867163,155.88,155.81,146.0]
[1749038354625,14.43867163,155.88,155.84,14.43867163]
[1749038355314,14.43867163,155.89,155.85,14.43867163]
[1749038355517,18.64964886,155.88,155.85,14.43867163]
[1749038355902,33.08832049,155.89,155.84,14.43867163]
[1749038356636,18.64964886,155.89,155.84,14.43867163]
[1749038356830,33.08832049,155.89,155.84,14.43867163]
[1749038357507,33.08832049,155.89,155.81,146.0]
[1749038357711,33.08832049,155.89,155.84,14.43867163]
[1749038358037,6.4723,155.9,155.82,14.43867163]
[1749038358038,18.64964886,155.86,155.82,14.43867163]
[1749038358244,18.64964886,155.82,155.72,9.19034789]
[1749038358406,18.64964886,155.82,155.67,7.754]
[1749038358407,18.64964886,155.82,155.77,14.43867163]
[1749038358611,33.08832049,155.82,155.77,14.43867163]
[1749038358814,33.08832049,155.82,155.78,14.43867163]
[1749038359005,18.64964886,155.82,155.78,14.43867163]
[1749038359206,18.64964886,155.82,155.79,14.43867163]
[1749038359419,33.08832049,155.82,155.78,14.43867163]
[1749038359928,18.64964886,155.82,155.78,14.43867163]
[1749038360939,33.08832049,155.82,155.77,14.43867163]
[1749038361429,14.43867163,155.81,155.77,14.43867163]
[1749038363412,18.64964886,155.82,155.76,26.0]
[1749038363413,18.64964886,155.8,155.76,40.43867163]
[1749038363617,14.43867163,155.8,155.76,26.0]
[1749038363818,14.43867163,155.79,155.73,153.754]
[1749038364031,14.43867163,155.79,155.75,14.43867163]
[1749038364442,14.43867163,155.79,155.76,26.0]
[1749038364648,14.43867163,155.79,155.75,14.43867163]
[1749038366044,16.08227163,155.84,155.78,14.43867163]
[1749038366045,18.64964886,155.83,155.78,14.43867163]
[1749038366223,18.64964886,155.83,155.76,40.43867163]
[1749038366224,33.08832049,155.83,155.79,14.43867163]
[1749038366645,18.64964886,155.81,155.78,14.43867163]
[1749038366843,33.08832049,155.81,155.77,14.43867163]
[1749038367847,14.43867163,155.8,155.76,40.43867163]
[1749038370353,14.43867163,155.8,155.76,14.43867163]
[1749038370728,14.43867163,155.8,155.74,0.42648471]
[1749038371049,14.43867163,155.8,155.76,14.43867163]
[1749038371854,14.43867163,155.8,155.73,33.754]
[1749038372032,14.43867163,155.8,155.75,14.43867163]
[1749038372658,14.43867163,155.8,155.76,14.43867163]
[1749038372843,18.64964886,155.81,155.77,14.43867163]
[1749038373432,18.64964886,155.81,155.78,14.43867163]
[1749038374765,18.64964886,155.81,155.79,14.43867163]
[1749038375126,0.5,155.82,155.79,14.43867163]
[1749038376261,0.5,155.82,155.78,14.43867163]
[1749038376756,0.5,155.82,155.79,14.43867163]
[1749038380638,0.5,155.82,155.8,14.43867163]
[1749038381761,18.64964886,155.81,155.76,172.0]
[1749038382062,18.64964886,155.81,155.79,14.43867163]
[1749038383152,18.64964886,155.81,155.76,172.0]
[1749038383352,18.64964886,155.81,155.79,14.43867163]
[1749038383550,18.64964886,155.81,155.76,172.0]
[1749038383754,18.64964886,155.81,155.78,14.43867163]
[1749038384766,0.5,155.82,155.79,14.43867163]
[1749038385266,0.5,155.82,155.81,14.43867163]
[1749038385460,7.6814,155.88,155.81,14.43867163]
[1749038385461,18.64964886,155.87,155.81,14.43867163]
[1749038385654,33.08832049,155.87,155.82,14.43867163]
[1749038385847,33.08832049,155.87,155.79,27.53]
[1749038385848,14.43867163,155.86,155.79,27.53]
[1749038386045,14.43867163,155.86,155.82,14.43867163]
[1749038386461,14.43867163,155.84,155.79,26.0]
[1749038386663,14.43867163,155.84,155.8,14.43867163]
[1749038386869,18.64964886,155.84,155.8,14.43867163]
[1749038387745,18.79181043,155.87,155.8,14.43867163]
[1749038388059,19.14964886,155.84,155.8,14.43867163]
[1749038388569,18.64964886,155.84,155.81,14.43867163]
[1749038391842,14.43867163,155.86,155.81,14.43867163]
[1749038392046,18.64964886,155.87,155.82,14.43867163]
[1749038392248,18.64964886,155.87,155.83,14.43867163]
[1749038392462,33.08832049,155.87,155.83,14.43867163]
[1749038393443,0.5,155.86,155.83,14.43867163]
[1749038393743,0.5,155.86,155.79,26.0]
[1749038393744,18.64964886,155.84,155.79,26.0]
[1749038393942,18.64964886,155.84,155.8,14.43867163]
[1749038394139,18.64964886,155.84,155.81,14.43867163]
[1749038394380,14.93867163,155.86,155.81,14.43867163]
[1749038394675,14.93867163,155.86,155.79,26.0]
[1749038394676,18.64964886,155.84,155.8,14.43867163]
[1749038395058,18.64964886,155.84,155.81,14.43867163]
[1749038395862,18.64964886,155.85,155.81,14.43867163]
[1749038396048,33.08832049,155.85,155.81,14.43867163]
[1749038396652,18.64964886,155.85,155.82,14.43867163]
[1749038396987,18.64964886,155.85,155.83,14.43867163]
[1749038397568,0.5,155.86,155.83,14.43867163]
[1749038400466,19.14964886,155.86,155.85,14.43867163]
[1749038400847,18.64964886,155.86,155.85,14.43867163]
[1749038402262,18.64964886,155.86,155.83,26.0]
[1749038402580,17.77979311,155.89,155.85,14.43867163]
[1749038402898,18.64964886,155.88,155.83,26.0]
[1749038403062,18.64964886,155.88,155.85,14.43867163]
[1749038403261,33.08832049,155.88,155.84,14.43867163]
[1749038403693,14.43867163,155.85,155.76,14.5808332]
[1749038403977,14.43867163,155.85,155.75,7.8183]
[1749038403978,33.08832049,155.83,155.79,14.43867163]
[1749038404194,18.64964886,155.83,155.79,14.43867163]
[1749038404353,18.64964886,155.83,155.75,8.24478471]
[1749038404354,18.64964886,155.83,155.75,7.8183]
[1749038404556,18.64964886,155.83,155.8,14.43867163]
[1749038404779,18.64964886,155.83,155.81,14.43867163]
[1749038405671,18.64964886,155.83,155.8,14.43867163]
[1749038405979,14.43867163,155.83,155.78,14.43867163]
[1749038406169,14.43867163,155.83,155.75,7.8183]
[1749038406480,18.64964886,155.81,155.75,7.8183]
[1749038406687,18.64964886,155.81,155.75,1.6612]
[1749038406984,18.64964886,155.81,155.77,14.43867163]
[1749038407286,18.64964886,155.81,155.78,14.43867163]
[1749038407458,14.43867163,155.84,155.76,0.42648471]
[1749038407663,33.08832049,155.85,155.81,14.43867163]
[1749038408560,18.64964886,155.85,155.81,14.43867163]
[1749038408757,0.5,155.84,155.81,14.43867163]
[1749038409296,18.64964886,155.83,155.76,160.86515634]
[1749038409494,18.64964886,155.83,155.76,0.42648471]
[1749038409683,18.64964886,155.83,155.8,14.43867163]
[1749038410490,18.64964886,155.83,155.81,14.43867163]
[1749038410693,18.64964886,155.83,155.77,26.0]
[1749038410694,18.64964886,155.86,155.82,14.43867163]
[1749038410897,18.64964886,155.86,155.84,14.43867163]
[1749038412170,18.64964886,155.86,155.8,0.42648471]
[1749038412393,18.64964886,155.86,155.8,26.42648471]
[1749038412579,18.64964886,155.86,155.83,14.43867163]
[1749038412976,18.64964886,155.86,155.84,14.43867163]
[1749038413176,18.64964886,155.86,155.83,14.43867163]
[1749038413502,18.64964886,155.89,155.85,14.43867163]
[1749038413675,18.64964886,155.89,155.87,14.43867163]
[1749038413997,14.43867163,155.94,155.88,14.43867163]
[1749038414168,14.43867163,155.94,155.9,14.43867163]
[1749038414169,18.64964886,155.93,155.9,14.43867163]
[1749038414371,18.64964886,155.93,155.89,14.43867163]
[1749038414588,33.08832049,155.93,155.89,14.43867163]
[1749038415006,33.08832049,155.93,155.88,14.43867163]
[1749038415179,18.64964886,155.91,155.87,14.43867163]
[1749038415378,33.08832049,155.91,155.86,14.43867163]
[1749038415615,33.08832049,155.91,155.87,14.43867163]
[1749038415781,33.08832049,155.91,155.86,26.0]
[1749038415782,18.64964886,155.91,155.88,14.43867163]
[1749038416371,18.64964886,155.91,155.87,14.43867163]
[1749038416596,18.64964886,155.91,155.83,172.0]
[1749038416597,18.64964886,155.91,155.88,14.43867163]
[1749038416971,18.64964886,155.92,155.88,14.43867163]
[1749038417183,33.08832049,155.92,155.88,14.43867163]
[1749038417624,18.64964886,155.94,155.88,14.43867163]
[1749038417784,33.08832049,155.94,155.9,14.43867163]
[1749038419875,18.64964886,155.94,155.9,14.43867163]
[1749038420076,33.08832049,155.94,155.9,14.43867163]
[1749038420390,33.08832049,155.94,155.89,14.43867163]
[1749038420703,14.43867163,155.93,155.89,14.43867163]
[1749038421408,33.08832049,155.94,155.9,14.43867163]
[1749038421597,18.64964886,155.92,155.89,14.43867163]
[1749038422177,18.64964886,155.92,155.85,147.98728471]
[1749038422178,33.08832049,155.94,155.9,14.43867163]
[1749038423310,18.64964886,155.92,155.88,14.43867163]
[1749038423482,33.08832049,155.92,155.88,14.43867163]
[1749038424615,18.64964886,155.94,155.91,14.43867163]
[1749038425914,18.64964886,155.94,155.92,14.43867163]
[1749038426593,18.64964886,155.94,155.88,26.0]
[1749038426810,14.43867163,155.96,155.91,14.43867163]
[1749038427117,18.64964886,155.94,155.9,14.43867163]
[1749038427615,14.43867163,155.94,155.9,14.43867163]
[1749038427811,14.43867163,155.94,155.89,14.43867163]
[1749038428320,33.08832049,155.92,155.85,173.5608]
[1749038428619,33.08832049,155.9,155.86,14.43867163]
[1749038428792,33.08832049,155.9,155.85,147.5608]
[1749038428793,18.64964886,155.9,155.87,14.43867163]
[1749038428992,6.5634,155.95,155.87,14.43867163]
[1749038428993,44.64964886,155.92,155.87,14.43867163]
[1749038429225,59.08832049,155.92,155.85,1.5608]
[1749038429392,59.08832049,155.92,155.87,14.43867163]
[1749038430308,59.08832049,155.92,155.88,14.43867163]
[1749038430709,44.64964886,155.92,155.88,14.43867163]
[1749038430905,59.08832049,155.92,155.88,14.43867163]
[1749038431587,59.08832049,155.92,155.87,14.43867163]
[1749038431787,14.43867163,155.9,155.82,158.68363729]
[1749038432020,14.43867163,155.9,155.82,158.54147572]
[1749038432197,14.43867163,155.9,155.86,14.43867163]
[1749038432715,14.43867163,155.91,155.86,14.43867163]
[1749038435619,14.43867163,155.91,155.83,0.42648471]
[1749038435820,14.43867163,155.9,155.86,14.43867163]
[1749038436525,18.64964886,155.86,155.81,1.5578]
[1749038436711,18.64964886,155.86,155.83,14.43867163]
[1749038437119,14.43867163,155.88,155.83,14.43867163]
[1749038438020,14.43867163,155.88,155.81,1.5578]
[1749038438021,14.43867163,155.88,155.84,14.43867163]
[1749038438321,14.43867163,155.87,155.81,1.84212314]
[1749038438524,33.08832049,155.88,155.84,14.43867163]
[1749038439738,33.08832049,155.88,155.81,147.84212314]
[1749038439739,18.64964886,155.88,155.81,147.84212314]
[1749038439906,18.64964886,155.88,155.84,14.43867163]
[1749038440226,18.64964886,155.88,155.81,147.84212314]
[1749038440430,18.64964886,155.91,155.86,14.43867163]
[1749038440642,14.43867163,155.92,155.87,14.43867163]
[1749038440925,18.64964886,155.93,155.88,14.43867163]
[1749038441130,33.08832049,155.93,155.83,26.0]
[1749038441333,14.43867163,155.91,155.85,26.0]
[1749038441502,18.64964886,155.93,155.87,14.43867163]
[1749038441503,14.43867163,155.92,155.87,14.43867163]
[1749038441904,18.64964886,155.89,155.82,146.0]
[1749038442104,18.64964886,155.89,155.85,14.43867163]
[1749038442312,18.64964886,155.91,155.86,14.43867163]
[1749038442512,33.08832049,155.91,155.86,14.43867163]
[1749038442708,18.64964886,155.89,155.86,14.43867163]
[1749038442909,33.08832049,155.89,155.85,14.43867163]
[1749038443115,14.43867163,155.89,155.84,14.43867163]
[1749038443916,18.64964886,155.87,155.82,26.0]
[1749038444116,18.64964886,155.87,155.84,14.43867163]
[1749038444514,14.43867163,155.89,155.84,14.43867163]
[1749038445429,14.43867163,155.87,155.81,1.5578]
[1749038445608,18.64964886,155.85,155.82,14.43867163]
[1749038445817,18.64964886,155.85,155.79,21.06200894]
[1749038446132,18.64964886,155.85,155.82,14.43867163]
[1749038446334,18.64964886,155.86,155.82,14.43867163]
[1749038446810,18.64964886,155.88,155.85,14.43867163]
[1749038447503,15.95707163,155.89,155.8,0.42648471]
[1749038447504,33.08832049,155.89,155.84,14.43867163]
[1749038447708,14.43867163,155.88,155.84,14.43867163]
[1749038448111,14.43867163,155.88,155.83,14.43867163]
[1749038448716,14.43867163,155.88,155.84,14.43867163]
[1749038449036,14.43867163,155.88,155.8,0.42648471]
[1749038449037,33.08832049,155.89,155.85,14.43867163]
[1749038449214,0.5,155.87,155.85,14.43867163]
[1749038449409,18.64964886,155.86,155.83,14.43867163]
[1749038451348,18.64964886,155.86,155.8,146.42648471]
[1749038451349,18.64964886,155.87,155.84,14.43867163]
[1749038451511,14.43867163,155.89,155.85,14.43867163]
[1749038451717,59.08832049,155.9,155.86,14.43867163]
[1749038452038,18.64964886,155.9,155.86,14.43867163]
[1749038452341,18.79181043,155.92,155.86,14.43867163]
[1749038452550,18.64964886,155.9,155.86,14.43867163]
[1749038452911,0.14216157,155.92,155.84,14.43867163]
[1749038452912,18.64964886,155.92,155.84,14.43867163]
[1749038453111,33.08832049,155.92,155.87,14.43867163]
[1749038453727,18.64964886,155.9,155.87,14.43867163]
[1749038453925,33.08832049,155.9,155.86,14.43867163]
[1749038454126,18.64964886,155.88,155.82,173.67736157]
[1749038454348,18.64964886,155.88,155.85,14.43867163]
[1749038454738,33.08832049,155.88,155.84,14.43867163]
[1749038455562,33.08832049,155.88,155.81,26.0]
[1749038455734,33.08832049,155.88,155.84,14.43867163]
[1749038456150,18.64964886,155.86,155.83,14.43867163]
[1749038457457,14.43867163,155.85,155.79,21.06200894]
[1749038457655,18.64964886,155.84,155.8,14.43867163]
[1749038457961,33.08832049,155.84,155.8,14.43867163]
[1749038458255,18.64964886,155.84,155.81,14.43867163]
[1749038458953,14.43867163,155.84,155.78,27.591]
[1749038459150,14.43867163,155.84,155.8,14.43867163]
[1749038459737,18.64964886,155.84,155.81,14.43867163]
[1749038459941,14.43867163,155.87,155.82,14.43867163]
[1749038460154,18.64964886,155.86,155.83,14.43867163]
[1749038460562,18.64964886,155.87,155.83,14.43867163]
[1749038460738,33.08832049,155.87,155.83,14.43867163]
[1749038461053,0.5,155.86,155.83,14.43867163]
[1749038462239,14.93867163,155.86,155.82,14.43867163]
[1749038462568,18.64964886,155.84,155.8,14.43867163]
[1749038462743,14.93867163,155.86,155.82,14.43867163]
[1749038463854,18.64964886,155.84,155.78,173.591]
[1749038464068,18.64964886,155.84,155.81,14.43867163]
[1749038464237,14.93867163,155.86,155.82,14.43867163]
[1749038464670,0.5,155.86,155.82,14.43867163]
[1749038464962,14.93867163,155.86,155.82,14.43867163]
[1749038465868,0.5,155.86,155.82,14.43867163]
[1749038466038,0.5,155.86,155.84,14.43867163]
[1749038466472,18.64964886,155.84,155.78,173.591]
[1749038466767,18.64964886,155.84,155.78,27.591]
[1749038466966,18.64964886,155.84,155.8,14.43867163]
[1749038467149,18.64964886,155.84,155.81,14.43867163]
[1749038467347,18.64964886,155.87,155.83,14.43867163]
[1749038467771,33.08832049,155.87,155.79,0.14216157]
[1749038467978,33.08832049,155.87,155.82,14.43867163]
[1749038468146,18.64964886,155.87,155.82,14.43867163]
[1749038468341,33.08832049,155.87,155.82,14.43867163]
[1749038468980,0.5,155.86,155.82,14.43867163]
[1749038469274,14.43867163,155.84,155.78,173.591]
[1749038469444,0.5,155.86,155.82,14.43867163]
[1749038469635,0.5,155.86,155.78,173.591]
[1749038469636,18.64964886,155.85,155.83,14.43867163]
[1749038470060,18.64964886,155.85,155.78,173.591]
[1749038470061,18.64964886,155.85,155.79,0.14216157]
[1749038470251,18.64964886,155.85,155.78,173.591]
[1749038470252,18.64964886,155.85,155.83,14.43867163]
[1749038471774,18.64964886,155.85,155.82,14.43867163]
[1749038473148,18.64964886,155.85,155.83,14.43867163]
[1749038473677,18.64964886,155.85,155.81,26.0]
[1749038473983,18.64964886,155.85,155.83,14.43867163]
[1749038474158,18.64964886,155.88,155.84,14.43867163]
[1749038474354,18.64964886,155.89,155.87,14.43867163]
[1749038474553,1.5446,155.92,155.87,14.43867163]
[1749038474762,1.5446,155.92,155.82,26.28432314]
[1749038474763,15.01346576,155.96,155.9,14.43867163]
[1749038475059,33.08832049,155.95,155.9,14.43867163]
[1749038475646,0.5,155.91,155.9,14.43867163]
[1749038475858,33.08832049,155.95,155.9,14.43867163]
[1749038476355,33.08832049,155.95,155.91,14.43867163]
[1749038477211,33.08832049,155.95,155.87,26.0]
[1749038477212,18.64964886,155.95,155.92,14.43867163]
[1749038477505,18.64964886,155.95,155.87,26.0]
[1749038477506,18.64964886,155.95,155.93,14.43867163]
[1749038478490,18.64964886,155.94,155.92,14.43867163]
[1749038478807,18.64964886,155.95,155.91,14.43867163]
[1749038478808,33.08832049,155.95,155.91,14.43867163]
[1749038479017,14.43867163,155.94,155.87,26.0]
[1749038479320,14.43867163,155.94,155.89,14.43867163]
[1749038480228,18.64964886,155.92,155.89,14.43867163]
[1749038480511,33.08832049,155.92,155.88,14.43867163]
[1749038480688,33.08832049,155.92,155.84,34.30746157]
[1749038480892,33.08832049,155.92,155.88,14.43867163]
[1749038481188,33.08832049,155.9,155.84,1.5429]
[1749038481496,14.43867163,155.87,155.8,7.8374]
[1749038481699,19.21829514,155.91,155.81,14.43867163]
[1749038481901,19.21829514,155.91,155.8,7.8374]
[1749038481902,14.43867163,155.87,155.83,14.43867163]
[1749038482091,14.43867163,155.88,155.83,14.43867163]
[1749038482292,14.43867163,155.87,155.83,14.43867163]
[1749038482612,18.64964886,155.86,155.8,7.8374]
[1749038482788,18.64964886,155.86,155.82,14.43867163]
[1749038483506,14.43867163,155.86,155.82,14.43867163]
[1749038483687,0.14216157,155.89,155.82,14.43867163]
[1749038483886,18.64964886,155.86,155.83,14.43867163]
[1749038484081,18.64964886,155.87,155.83,14.43867163]
[1749038484287,33.08832049,155.87,155.83,14.43867163]
[1749038485419,18.64964886,155.87,155.83,14.43867163]
[1749038485595,14.43867163,155.87,155.8,1.5204]
[1749038485797,18.64964886,155.87,155.83,14.43867163]
[1749038486099,18.64964886,155.87,155.84,14.43867163]
[1749038486304,18.64964886,155.88,155.84,14.43867163]
[1749038486611,33.08832049,155.88,155.84,14.43867163]
[1749038487129,0.5,155.87,155.83,14.43867163]
[1749038487328,0.5,155.87,155.84,14.43867163]
[1749038489001,0.5,155.87,155.85,14.43867163]
[1749038489407,0.5,155.87,155.86,14.43867163]
[1749038489803,18.64964886,155.9,155.86,14.43867163]
[1749038489997,18.64964886,155.9,155.87,14.43867163]
[1749038490598,18.64964886,155.9,155.86,14.43867163]
[1749038491524,18.64964886,155.9,155.83,172.0]
[1749038491525,14.43867163,155.89,155.84,14.43867163]
[1749038491933,18.64964886,155.87,155.8,1.66256157]
[1749038492133,33.08832049,155.87,155.82,14.43867163]
[1749038492916,18.64964886,155.88,155.83,14.43867163]
[1749038493140,14.43867163,155.87,155.83,14.43867163]
[1749038493341,14.43867163,155.87,155.82,14.43867163]
[1749038493833,18.64964886,155.85,155.82,14.43867163]
[1749038494037,14.43867163,155.85,155.81,14.43867163]
[1749038494434,18.64964886,155.85,155.82,14.43867163]
[1749038495343,18.64964886,155.88,155.84,14.43867163]
[1749038495521,0.5,155.89,155.87,14.43867163]
[1749038495722,0.5,155.89,155.88,14.43867163]
[1749038495922,18.64964886,155.91,155.88,14.43867163]
[1749038497636,0.5,155.9,155.88,14.43867163]
[1749038497957,18.64964886,155.91,155.88,14.43867163]
[1749038498411,18.64964886,155.93,155.9,14.43867163]
[1749038498615,18.64964886,155.93,155.92,14.43867163]
[1749038498848,18.64964886,155.93,155.91,14.43867163]
[1749038499856,18.64964886,155.95,155.92,14.43867163]
[1749038500176,18.64964886,155.95,155.93,14.43867163]
[1749038500627,18.64964886,155.95,155.92,14.43867163]
[1749038502530,33.08832049,155.95,155.91,14.43867163]
[1749038502732,18.64964886,155.95,155.92,14.43867163]
[1749038504045,18.64964886,155.95,155.93,14.43867163]
[1749038505634,18.64964886,155.95,155.92,14.43867163]
[1749038507241,18.64964886,155.95,155.91,14.43867163]
[1749038507756,33.08832049,155.95,155.91,14.43867163]
[1749038509049,18.64964886,155.93,155.87,172.0]
[1749038509256,18.64964886,155.93,155.89,14.43867163]
[1749038509555,18.64964886,155.93,155.87,172.0]
[1749038509556,18.64964886,155.93,155.9,14.43867163]
[1749038509861,33.08832049,155.95,155.9,14.43867163]
[1749038510164,33.08832049,155.95,155.87,172.0]
[1749038510165,33.08832049,155.95,155.91,14.43867163]
[1749038510472,18.64964886,155.95,155.91,14.43867163]
[1749038510768,33.08832049,155.95,155.91,14.43867163]
[1749038511642,18.64964886,155.95,155.91,14.43867163]
[1749038511979,33.08832049,155.95,155.91,14.43867163]
[1749038513450,18.64964886,155.95,155.91,14.43867163]
[1749038513660,18.64964886,155.95,155.93,14.43867163]
[1749038513853,3.33896331,155.99,155.87,26.0]
[1749038513854,3.33896331,155.99,155.94,14.43867163]
[1749038514168,18.64964886,155.98,155.96,14.43867163]
[1749038514339,18.64964886,156.0,155.97,14.43867163]
[1749038514737,14.43867163,156.01,155.97,14.43867163]
[1749038514738,18.64964886,156.01,155.97,14.43867163]
[1749038516751,18.64964886,156.02,155.97,14.43867163]
[1749038516958,33.08832049,156.02,155.98,14.43867163]
[1749038517772,14.43867163,156.01,155.97,14.43867163]
[1749038518440,18.64964886,156.02,155.97,14.43867163]
[1749038518641,14.43867163,156.01,155.97,14.43867163]
[1749038519171,14.43867163,155.98,155.9,6.2058]
[1749038519352,14.43867163,155.98,155.94,14.43867163]
[1749038519765,18.64964886,155.98,155.94,14.43867163]
[1749038519939,18.64964886,155.98,155.9,6.2058]
[1749038519940,18.64964886,155.98,155.95,14.43867163]
[1749038520140,18.64964886,155.98,155.9,32.2058]
[1749038520351,14.43867163,155.98,155.93,14.43867163]
[1749038520547,14.43867163,155.98,155.94,14.43867163]
[1749038520745,33.08832049,155.99,155.94,14.43867163]
[1749038521360,33.08832049,155.99,155.95,14.43867163]
[1749038521562,3.33830344,156.03,155.96,14.43867163]
[1749038521743,3.33830344,156.03,155.93,26.0]
[1749038521744,18.64964886,156.01,155.97,14.43867163]
[1749038522877,18.64964886,156.01,155.93,26.0]
[1749038523184,18.64964886,156.01,155.97,14.43867163]
[1749038525714,33.08832049,156.01,155.97,14.43867163]
[1749038526142,18.64964886,156.01,155.97,14.43867163]
[1749038528558,18.64964886,156.01,155.92,4.90919418]
[1749038528874,33.08832049,156.01,155.96,14.43867163]
[1749038529363,14.43867163,156.0,155.95,14.43867163]
[1749038529573,14.43867163,155.98,155.94,14.43867163]
[1749038529959,18.64964886,155.97,155.94,14.43867163]
[1749038530187,18.64964886,155.97,155.9,6.2058]
[1749038530188,18.64964886,155.97,155.93,14.43867163]
[1749038532163,18.64964886,155.97,155.94,14.43867163]
[1749038532383,18.64964886,155.98,155.94,14.43867163]
[1749038532865,18.64964886,155.98,155.95,14.43867163]
[1749038533380,3.62822186,156.01,155.97,14.43867163]
[1749038533381,40.43867163,156.01,155.97,14.43867163]
[1749038534105,14.43867163,156.01,155.97,14.43867163]